[Event "44th Chess Olympiad Open 2022"]
[Site "Chennai"]
[Date "2022.07.30"]
[Round "2.69"]
[White "de Araujo, Helder"]
[Black "Vella, Duncan"]
[Result "1-0"]
[WhiteElo "1742"]
[BlackElo "1985"]
[Annotator "NA"]
[PlyCount "71"]
[EventDate "2022.??.??"]
[TimeControl "60"]

1. d4 {[%emt 0:00:21]} Nf6 {[%emt 0:00:08]} 2. c4 {[%emt 0:00:27]} c5 {[%emt 0:
00:00]} 3. Nf3 {[%emt 0:00:41]} cxd4 {[%emt 0:01:08]} 4. Nxd4 {[%emt 0:00:33]}
Nc6 {[%emt 0:00:59]} 5. Nc3 {[%emt 0:00:55]} g6 {[%emt 0:00:55]} 6. g3 {
[%emt 0:01:48]} Bg7 {[%emt 0:01:49]} 7. Nxc6 {[%emt 0:04:05]} bxc6 {[%emt 0:00:
00]} 8. Bg2 {[%emt 0:00:22]} O-O {[%emt 0:02:23]} 9. O-O {[%emt 0:01:45]} Rb8 {
[%emt 0:04:21]} 10. Qc2 {[%emt 0:01:44]} Qc7 {[%emt 0:07:50]} 11. b3 {[%emt 0:
00:00]} d5 {[%emt 0:09:49]} 12. Bb2 {[%emt 0:17:24]} Bf5 {[%emt 0:06:33]} 13.
Qc1 {[%emt 0:05:01]} dxc4 {[%emt 0:06:31]} 14. bxc4 {[%emt 0:04:14]} Rb4 {
[%emt 0:07:08]} 15. Nd1 {[%emt 0:04:33]} Rfb8 {[%emt 0:02:33]} 16. Bc3 {
[%emt 0:10:42]} Rxc4 {[%emt 0:08:52]} 17. Ne3 {[%emt 0:04:10]} Rc5 {[%emt 0:00:
00]} 18. Nxf5 {[%emt 0:03:17]} Rxf5 {[%emt 0:00:26]} 19. Bd4 {[%emt 0:06:25]}
Rd8 {[%emt 0:11:17]} 20. e3 {[%emt 0:03:07]} e5 {[%emt 0:03:05]} 21. e4 {
[%emt 0:04:45]} Rh5 {[%emt 0:00:48]} 22. Be3 {[%emt 0:02:33]} Ng4 {[%emt 0:00:
00]} 23. h3 {[%emt 0:03:33]} Nxe3 {[%emt 0:00:24]} 24. Qxe3 {[%emt 0:00:55]} f5
{[%emt 0:01:55]} 25. g4 {[%emt 0:01:31]} fxg4 {[%emt 0:01:03]} 26. hxg4 {
[%emt 0:00:41]} Rh4 {[%emt 0:00:20]} 27. Qg5 {[%emt 0:01:45]} Rh6 {[%emt 0:00:
00]} 28. Rad1 {[%emt 0:00:59]} Re8 {[%emt 0:00:07]} 29. Rd3 {[%emt 0:01:29]}
Qe7 {[%emt 0:00:18]} 30. Qxe7 {[%emt 0:00:23]} Rxe7 {[%emt 0:00:01]} 31. Rfd1 {
[%emt 0:00:16]} g5 {[%emt 0:01:12]} 32. Rd7 {[%emt 0:01:50]} Kf8 {[%emt 0:00:
00]} 33. Bf1 {[%emt 0:01:26]} c5 {[%emt 0:03:12]} 34. Bc4 {[%emt 0:01:11]} Rc6
{[%emt 0:02:01]} 35. Rd8+ {[%emt 0:00:16]} Re8 {[%emt 0:00:14]} 36. Rxe8+ {
[%emt 0:00:11]} 1-0

[Event "44th Chess Olympiad Open 2022"]
[Site "Chennai"]
[Date "2022.07.30"]
[Round "2.69"]
[White "dos Reis, Tito"]
[Black "Darmanin, Jake"]
[Result "0-1"]
[WhiteElo "1658"]
[BlackElo "2101"]
[Annotator "RC"]
[PlyCount "131"]
[EventDate "2022.??.??"]
[TimeControl "60"]

1. f4 {[%emt 0:00:07]} d5 {[%emt 0:00:11]} 2. Nf3 {[%emt 0:00:15]} c5 {[%emt 0:
00:00]} 3. e3 {[%emt 0:00:17]} Nf6 {[%emt 0:00:16]} 4. c3 {[%emt 0:00:30]} Nc6
{[%emt 0:00:28]} 5. d4 {[%emt 0:00:52]} g6 {[%emt 0:02:05]} 6. Bd3 {[%emt 0:00:
00]} Bg7 {[%emt 0:00:47]} 7. Nbd2 {[%emt 0:00:55]} Qb6 {[%emt 0:03:14]} 8. Qe2
{[%emt 0:00:26]} O-O {[%emt 0:03:59]} 9. O-O {[%emt 0:00:33]} Qc7 {[%emt 0:00:
00]} 10. a3 {[%emt 0:04:05]} c4 {[%emt 0:03:53]} 11. Bc2 {[%emt 0:00:22]} b5 {
[%emt 0:00:21]} 12. Ne5 {[%emt 0:00:32]} a5 {[%emt 0:08:40]} 13. e4 {[%emt 0:
00:00]} Bb7 {[%emt 0:08:39]} 14. Nxc6 {[%emt 0:00:36]} Qxc6 {[%emt 0:01:56]}
15. e5 {[%emt 0:00:35]} Nd7 {[%emt 0:03:31]} 16. f5 {[%emt 0:01:20]} b4 {
[%emt 0:08:44]} 17. fxg6 {[%emt 0:02:34]} fxg6 {[%emt 0:04:03]} 18. Nf3 {
[%emt 0:00:45]} b3 {[%emt 0:04:32]} 19. Bb1 {[%emt 0:00:50]} Rae8 {[%emt 0:00:
00]} 20. Bd2 {[%emt 0:01:27]} Bc8 {[%emt 0:01:31]} 21. Qe1 {[%emt 0:02:17]} Nb6
{[%emt 0:08:31]} 22. Qh4 {[%emt 0:02:00]} Na4 {[%emt 0:01:50]} 23. Bc1 {
[%emt 0:05:09]} Qb6 {[%emt 0:00:51]} 24. Rf2 {[%emt 0:01:33]} Bf5 {[%emt 0:00:
00]} 25. Bh6 {[%emt 0:01:59]} e6 {[%emt 0:03:44]} 26. Bxg7 {[%emt 0:02:25]}
Kxg7 {[%emt 0:00:03]} 27. Bxf5 {[%emt 0:03:08]} Rxf5 {[%emt 0:00:55]} 28. g4 {
[%emt 0:02:06]} Rff8 {[%emt 0:01:23]} 29. Raf1 {[%emt 0:02:27]} h6 {[%emt 0:00:
00]} 30. Ne1 {[%emt 0:08:55]} Qd8 {[%emt 0:00:45]} 31. Rf6 {[%emt 0:08:36]}
Nxb2 {[%emt 0:00:44]} 32. R1f3 {[%emt 0:05:22]} Na4 {[%emt 0:02:06]} 33. Rh3 {
[%emt 0:01:11]} Rh8 {[%emt 0:00:26]} 34. Rhf3 {[%emt 0:03:28]} Ref8 {[%emt 0:
00:00]} 35. Qf2 {[%emt 0:04:59]} Rxf6 {[%emt 0:01:43]} 36. Rxf6 {[%emt 0:00:21]
} Qe8 {[%emt 0:01:03]} 37. Nf3 {[%emt 0:04:56]} b2 {[%emt 0:01:59]} 38. Qc2 {
[%emt 0:00:46]} Rf8 {[%emt 0:00:53]} 39. g5 {[%emt 0:02:15]} hxg5 {[%emt 0:00:
00]} 40. Nd2 {[%emt 0:07:23]} Rxf6 {[%emt 0:01:11]} 41. exf6+ {[%emt 0:30:48]}
Kxf6 {[%emt 0:03:08]} 42. Nb1 {[%emt 0:00:00]} Kg7 {[%emt 0:01:43]} 43. Kg2 {
[%emt 0:00:00]} Qc6 {[%emt 0:05:41]} 44. Qe2 {[%emt 0:00:00]} Kh6 {[%emt 0:00:
00]} 45. Qe5 {[%emt 0:00:00]} Kh7 {[%emt 0:02:06]} 46. Qxg5 {[%emt 0:00:00]}
Qe8 {[%emt 0:03:37]} 47. Qf6 {[%emt 0:00:00]} Kg8 {[%emt 0:01:08]} 48. Qe5 {
[%emt 0:00:00]} Qf7 {[%emt 0:03:07]} 49. Qb8+ {[%emt 0:00:00]} Kh7 {[%emt 0:00:
00]} 50. Qb5 {[%emt 0:00:00]} Qf5 {[%emt 0:00:07]} 51. Qb7+ {[%emt 0:02:09]}
Kh6 {[%emt 0:00:46]} 52. Qb8 {[%emt 0:00:54]} Qe4+ {[%emt 0:03:35]} 53. Kg3 {
[%emt 0:01:57]} Qd3+ {[%emt 0:01:03]} 54. Kg4 {[%emt 0:00:44]} Qe2+ {[%emt 0:
00:00]} 55. Kg3 {[%emt 0:00:12]} Qe1+ {[%emt 0:00:45]} 56. Kg2 {[%emt 0:00:14]}
Qe2+ {[%emt 0:03:57]} 57. Kg3 {[%emt 0:00:20]} Qd3+ {[%emt 0:01:03]} 58. Kg2 {
[%emt 0:00:30]} Qxb1 {[%emt 0:00:21]} 59. Qf4+ {[%emt 0:00:36]} g5 {[%emt 0:00:
00]} 60. Qf6+ {[%emt 0:00:47]} Qg6 {[%emt 0:00:33]} 61. Qh8+ {[%emt 0:00:25]}
Qh7 {[%emt 0:00:07]} 62. Qf8+ {[%emt 0:01:39]} Qg7 {[%emt 0:00:18]} 63. Qb8 {
[%emt 0:01:30]} Nxc3 {[%emt 0:00:31]} 64. Qxb2 {[%emt 0:00:24]} Qxd4 {[%emt 0:
00:00]} 65. Qf2 {[%emt 0:06:34]} Qxf2+ {[%emt 0:00:09]} 66. Kxf2 {[%emt 0:00:
00]} 0-1

[Event "44th Chess Olympiad Open 2022"]
[Site "Chennai"]
[Date "2022.07.30"]
[Round "2.70"]
[White "Nyambalo, Joseph Xavier"]
[Black "Masiala Mayuku, Eddy"]
[Result "1-0"]
[WhiteElo "1981"]
[BlackElo "1574"]
[Annotator "NA RC"]
[PlyCount "145"]
[EventDate "2022.??.??"]
[TimeControl "60"]

1. c4 {[%emt 0:00:04]} e5 {[%emt 0:00:40]} 2. Nc3 {[%emt 0:00:05]} Nc6 {
[%emt 0:00:59]} 3. g3 {[%emt 0:00:07]} b6 {[%emt 0:00:46]} 4. Bg2 {[%emt 0:00:
00]} Bb7 {[%emt 0:02:04]} 5. Nf3 {[%emt 0:00:08]} d6 {[%emt 0:01:04]} 6. O-O {
[%emt 0:03:19]} g6 {[%emt 0:01:22]} 7. d4 {[%emt 0:00:58]} Bg7 {[%emt 0:01:37]}
8. dxe5 {[%emt 0:02:09]} Nxe5 {[%emt 0:01:18]} 9. Nxe5 {[%emt 0:00:34]} Bxg2 {
[%emt 0:02:21]} 10. Nxf7 {[%emt 0:02:25]} Kxf7 {[%emt 0:02:30]} 11. Kxg2 {
[%emt 0:02:21]} Nf6 {[%emt 0:00:51]} 12. Nd5 {[%emt 0:02:10]} Re8 {[%emt 0:00:
00]} 13. Bg5 {[%emt 0:01:24]} h6 {[%emt 0:00:38]} 14. Nxf6 {[%emt 0:00:31]}
Bxf6 {[%emt 0:00:37]} 15. Bxh6 {[%emt 0:01:33]} Kg8 {[%emt 0:02:15]} 16. Qc2 {
[%emt 0:00:38]} Kf7 {[%emt 0:01:12]} 17. Be3 {[%emt 0:03:03]} Qe7 {[%emt 0:00:
00]} 18. Rad1 {[%emt 0:01:25]} Rh8 {[%emt 0:00:20]} 19. h3 {[%emt 0:09:42]} Rh7
{[%emt 0:00:29]} 20. Rh1 {[%emt 0:04:24]} Rah8 {[%emt 0:00:38]} 21. Rh2 {
[%emt 0:01:18]} Qe6 {[%emt 0:01:35]} 22. Rdh1 {[%emt 0:00:19]} Rh5 {[%emt 0:00:
00]} 23. b3 {[%emt 0:00:30]} Re5 {[%emt 0:04:12]} 24. Qd3 {[%emt 0:05:13]} Rd8
{[%emt 0:01:23]} 25. h4 {[%emt 0:02:01]} Rh5 {[%emt 0:00:53]} 26. Bg5 {[%emt 0:
00:00]} d5 {[%emt 0:01:31]} 27. Bxf6 {[%emt 0:00:36]} Qxf6 {[%emt 0:00:50]} 28.
Rd1 {[%emt 0:02:05]} c6 {[%emt 0:01:43]} 29. e4 {[%emt 0:01:37]} d4 {[%emt 0:
00:00]} 30. Qf3 {[%emt 0:05:01]} c5 {[%emt 0:00:44]} 31. Qxf6+ {[%emt 0:01:22]}
Kxf6 {[%emt 0:00:35]} 32. f4 {[%emt 0:00:02]} Rh7 {[%emt 0:01:09]} 33. Kf3 {
[%emt 0:00:39]} d3 {[%emt 0:00:31]} 34. Rhd2 {[%emt 0:00:14]} Re7 {[%emt 0:00:
00]} 35. Rxd3 {[%emt 0:00:12]} Rde8 {[%emt 0:00:26]} 36. Rd6+ {[%emt 0:00:01]}
Kf7 {[%emt 0:00:22]} 37. Rd7 {[%emt 0:00:06]} a6 {[%emt 0:00:57]} 38. e5 {
[%emt 0:00:16]} b5 {[%emt 0:00:21]} 39. cxb5 {[%emt 0:00:49]} axb5 {[%emt 0:00:
00]} 40. Rxe7+ {[%emt 0:00:14]} Rxe7 {[%emt 0:00:32]} 41. Rc1 {[%emt 0:30:20]}
Rc7 {[%emt 0:30:24]} 42. Ke4 {[%emt 0:00:06]} Ke6 {[%emt 0:00:34]} 43. g4 {
[%emt 0:00:10]} Rc6 {[%emt 0:01:01]} 44. f5+ {[%emt 0:09:00]} Kf7 {[%emt 0:00:
00]} 45. e6+ {[%emt 0:00:53]} Kf6 {[%emt 0:01:17]} 46. g5+ {[%emt 0:00:04]} Ke7
{[%emt 0:00:30]} 47. fxg6 {[%emt 0:01:44]} Rxe6+ {[%emt 0:00:22]} 48. Kf5 {
[%emt 0:00:04]} Re2 {[%emt 0:00:59]} 49. Rxc5 {[%emt 0:00:34]} Rf2+ {[%emt 0:
00:00]} 50. Kg4 {[%emt 0:00:08]} Rg2+ {[%emt 0:00:17]} 51. Kh5 {[%emt 0:00:07]}
Rxa2 {[%emt 0:00:36]} 52. Rxb5 {[%emt 0:00:24]} Rh2 {[%emt 0:01:45]} 53. Rf5 {
[%emt 0:00:14]} Rd2 {[%emt 0:00:42]} 54. g7 {[%emt 0:01:32]} Rd8 {[%emt 0:00:
00]} 55. Rf8 {[%emt 0:00:00]} Rxf8 {[%emt 0:01:03]} 56. gxf8=R {[%emt 0:00:00]}
Kxf8 {[%emt 0:00:43]} 57. Kg6 {[%emt 0:00:00]} Kg8 {[%emt 0:00:18]} 58. b4 {
[%emt 0:00:00]} Kh8 {[%emt 0:00:52]} 59. b5 {[%emt 0:00:04]} Kg8 {[%emt 0:00:
00]} 60. b6 {[%emt 0:00:03]} Kf8 {[%emt 0:00:15]} 61. b7 {[%emt 0:00:46]} Ke7 {
[%emt 0:02:02]} 62. b8=Q {[%emt 0:00:13]} Ke6 {[%emt 0:00:26]} 63. Qe8+ {
[%emt 0:00:16]} Kd5 {[%emt 0:00:15]} 64. Kf5 {[%emt 0:00:33]} Kd4 {[%emt 0:00:
00]} 65. Qe4+ {[%emt 0:00:07]} Kc3 {[%emt 0:00:18]} 66. Qd5 {[%emt 0:00:02]}
Kb4 {[%emt 0:00:23]} 67. Qc6 {[%emt 0:00:03]} Kb3 {[%emt 0:00:26]} 68. Ke4 {
[%emt 0:00:03]} Kb4 {[%emt 0:00:20]} 69. Kd4 {[%emt 0:00:02]} Kb3 {[%emt 0:00:
00]} 70. Qc3+ {[%emt 0:00:10]} Ka2 {[%emt 0:00:15]} 71. Qb4 {[%emt 0:00:03]}
Ka1 {[%emt 0:00:25]} 72. Kc3 {[%emt 0:00:03]} Ka2 {[%emt 0:00:20]} 73. Qb2# {
[%emt 0:00:11]} 1-0

[Event "44th Chess Olympiad Open 2022"]
[Site "Chennai"]
[Date "2022.07.30"]
[Round "2.70"]
[White "Esungi, Guy Botetsi"]
[Black "Chiwambo Stansford"]
[Result "0-1"]
[WhiteElo "1481"]
[BlackElo "1913"]
[Annotator "NA RC"]
[PlyCount "58"]
[EventDate "2022.??.??"]
[TimeControl "60"]

1. e4 {[%emt 0:00:23]} c5 {[%emt 0:00:07]} 2. Nc3 {[%emt 0:00:37]} Nc6 {
[%emt 0:00:25]} 3. Nf3 {[%emt 0:00:32]} d6 {[%emt 0:01:36]} 4. Be2 {[%emt 0:00:
00]} g6 {[%emt 0:00:18]} 5. d3 {[%emt 0:01:08]} Bg7 {[%emt 0:00:14]} 6. Bd2 {
[%emt 0:01:29]} e6 {[%emt 0:00:28]} 7. O-O {[%emt 0:01:24]} Nge7 {[%emt 0:00:
00]} 8. Qc1 {[%emt 0:02:59]} h6 {[%emt 0:01:02]} 9. Nd1 {[%emt 0:02:04]} d5 {
[%emt 0:00:49]} 10. Bc3 {[%emt 0:06:09]} d4 {[%emt 0:01:02]} 11. Bd2 {[%emt 0:
00:00]} g5 {[%emt 0:00:56]} 12. Bxg5 {[%emt 0:04:18]} hxg5 {[%emt 0:00:26]} 13.
Qxg5 {[%emt 0:00:48]} Ng6 {[%emt 0:01:37]} 14. Qxc5 {[%emt 0:03:52]} e5 {
[%emt 0:03:12]} 15. b3 {[%emt 0:08:15]} Be6 {[%emt 0:00:52]} 16. Nb2 {[%emt 0:
00:00]} Qc7 {[%emt 0:04:29]} 17. Nc4 {[%emt 0:04:54]} O-O-O {[%emt 0:04:10]}
18. Ng5 {[%emt 0:05:28]} Nf4 {[%emt 0:01:44]} 19. Bf3 {[%emt 0:03:18]} Kb8 {
[%emt 0:02:55]} 20. Nxe6 {[%emt 0:03:02]} Nxe6 {[%emt 0:00:59]} 21. Qb5 {
[%emt 0:02:41]} Rdg8 {[%emt 0:03:18]} 22. a4 {[%emt 0:01:39]} Ng5 {[%emt 0:00:
00]} 23. Be2 {[%emt 0:03:40]} Bf6 {[%emt 0:02:12]} 24. Kh1 {[%emt 0:01:27]} Rh6
{[%emt 0:01:40]} 25. g3 {[%emt 0:15:40]} Rgh8 {[%emt 0:02:30]} 26. h4 {[%emt 0:
00:00]} Qd7 {[%emt 0:00:50]} 27. Nd6 {[%emt 0:04:53]} Rxh4+ {[%emt 0:03:56]}
28. gxh4 {[%emt 0:04:05]} Qh3+ {[%emt 0:00:09]} 29. Kg1 {[%emt 0:00:53]} Nf3+ {
[%emt 0:00:06]} 0-1

[Event "44th Chess Olympiad Open 2022"]
[Site "Chennai"]
[Date "2022.07.30"]
[Round "2.71"]
[White "Ahmad, Md Siraj Munir"]
[Black "Jean Louis, Marckens"]
[Result "0-1"]
[WhiteElo "2035"]
[BlackElo "2050"]
[Annotator "NA RC"]
[PlyCount "116"]
[EventDate "2022.??.??"]
[TimeControl "60"]

1. e4 {[%emt 0:00:04]} c6 {[%emt 0:00:30]} 2. d4 {[%emt 0:00:41]} d5 {[%emt 0:
00:00]} 3. Nc3 {[%emt 0:00:25]} dxe4 {[%emt 0:00:52]} 4. Nxe4 {[%emt 0:00:11]}
Nf6 {[%emt 0:00:48]} 5. Nxf6+ {[%emt 0:01:11]} exf6 {[%emt 0:01:09]} 6. c3 {
[%emt 0:00:51]} Bd6 {[%emt 0:01:46]} 7. Bd3 {[%emt 0:01:17]} Be6 {[%emt 0:00:
00]} 8. Qc2 {[%emt 0:08:08]} Qe7 {[%emt 0:07:16]} 9. Ne2 {[%emt 0:01:49]} h5 {
[%emt 0:05:09]} 10. Be3 {[%emt 0:05:03]} Nd7 {[%emt 0:03:03]} 11. O-O-O {
[%emt 0:14:30]} b5 {[%emt 0:02:15]} 12. Kb1 {[%emt 0:15:44]} Nb6 {[%emt 0:00:
00]} 13. Nf4 {[%emt 0:15:21]} Bxf4 {[%emt 0:08:49]} 14. Bxf4 {[%emt 0:00:10]}
Qd7 {[%emt 0:01:21]} 15. Rhe1 {[%emt 0:01:47]} Kf8 {[%emt 0:09:01]} 16. h4 {
[%emt 0:04:46]} g6 {[%emt 0:12:33]} 17. Re2 {[%emt 0:13:26]} Kg7 {[%emt 0:00:
00]} 18. Rde1 {[%emt 0:02:46]} Rhe8 {[%emt 0:02:15]} 19. Bc1 {[%emt 0:00:26]}
Bc4 {[%emt 0:02:36]} 20. Bxc4 {[%emt 0:01:24]} Nxc4 {[%emt 0:00:29]} 21. b3 {
[%emt 0:00:27]} Nd6 {[%emt 0:00:24]} 22. Ba3 {[%emt 0:02:15]} Nf5 {[%emt 0:00:
00]} 23. g3 {[%emt 0:00:15]} Re6 {[%emt 0:02:31]} 24. Qd3 {[%emt 0:01:09]} Rae8
{[%emt 0:01:21]} 25. Bc5 {[%emt 0:03:52]} a5 {[%emt 0:02:46]} 26. Kc2 {[%emt 0:
00:00]} Qd5 {[%emt 0:02:30]} 27. Rxe6 {[%emt 0:01:29]} Rxe6 {[%emt 0:01:23]}
28. Rxe6 {[%emt 0:00:07]} fxe6 {[%emt 0:01:04]} 29. Qe2 {[%emt 0:00:58]} Kf7 {
[%emt 0:04:18]} 30. Kd3 {[%emt 0:00:44]} Qh1 {[%emt 0:04:09]} 31. Kc2 {[%emt 0:
00:00]} Qa1 {[%emt 0:00:59]} 32. Kd3 {[%emt 0:00:25]} Qb1+ {[%emt 0:03:33]} 33.
Qc2 {[%emt 0:00:08]} Qf1+ {[%emt 0:01:50]} 34. Qe2 {[%emt 0:00:14]} Qh1 {
[%emt 0:00:28]} 35. Kc2 {[%emt 0:00:12]} Qa1 {[%emt 0:02:56]} 36. Kd3 {[%emt 0:
00:00]} Nh6 {[%emt 0:00:36]} 37. c4 {[%emt 0:01:50]} Nf5 {[%emt 0:00:45]} 38.
cxb5 {[%emt 0:01:18]} cxb5 {[%emt 0:00:33]} 39. Bb6 {[%emt 0:00:47]} Qb1+ {
[%emt 0:02:15]} 40. Qc2 {[%emt 0:00:13]} Qf1+ {[%emt 0:00:36]} 41. Qe2 {
[%emt 0:30:35]} Qxe2+ {[%emt 0:31:04]} 42. Kxe2 {[%emt 0:00:03]} a4 {[%emt 0:
00:00]} 43. bxa4 {[%emt 0:00:16]} bxa4 {[%emt 0:00:02]} 44. Kd3 {[%emt 0:00:37]
} Ke7 {[%emt 0:00:03]} 45. Bc5+ {[%emt 0:01:26]} Kd7 {[%emt 0:00:25]} 46. Kc4 {
[%emt 0:00:10]} g5 {[%emt 0:00:13]} 47. hxg5 {[%emt 0:00:11]} fxg5 {[%emt 0:00:
00]} 48. Ba7 {[%emt 0:02:19]} Kc6 {[%emt 0:02:38]} 49. Kd3 {[%emt 0:00:55]} Kd5
{[%emt 0:00:21]} 50. Bb8 {[%emt 0:00:38]} Nxd4 {[%emt 0:00:31]} 51. f4 {
[%emt 0:00:31]} g4 {[%emt 0:00:15]} 52. Be5 {[%emt 0:00:22]} Nf5 {[%emt 0:00:
00]} 53. Ke2 {[%emt 0:00:36]} Nxg3+ {[%emt 0:00:03]} 54. Kf2 {[%emt 0:00:16]}
Nf5 {[%emt 0:00:19]} 55. a3 {[%emt 0:00:41]} Ke4 {[%emt 0:00:30]} 56. Bc7 {
[%emt 0:00:20]} h4 {[%emt 0:00:10]} 57. Kg1 {[%emt 0:00:43]} Kf3 {[%emt 0:00:
00]} 58. Be5 {[%emt 0:00:32]} Kg3 {[%emt 0:00:42]} 0-1

[Event "44th Chess Olympiad Open 2022"]
[Site "Chennai"]
[Date "2022.07.30"]
[Round "2.71"]
[White "Gabriel, Davidson"]
[Black "Yussof, Pg Abd Rahman"]
[Result "1-0"]
[WhiteElo "1915"]
[BlackElo "1804"]
[Annotator "NA"]
[PlyCount "129"]
[EventDate "2022.??.??"]
[TimeControl "60"]

1. d4 {[%emt 0:00:07]} d5 {[%emt 0:01:00]} 2. c4 {[%emt 0:00:15]} c6 {[%emt 0:
00:00]} 3. Nc3 {[%emt 0:02:10]} Nf6 {[%emt 0:01:13]} 4. Nf3 {[%emt 0:02:02]} e6
{[%emt 0:02:08]} 5. e3 {[%emt 0:00:48]} Nbd7 {[%emt 0:01:42]} 6. Qc2 {[%emt 0:
00:00]} Bb4 {[%emt 0:02:43]} 7. Bd3 {[%emt 0:00:46]} dxc4 {[%emt 0:02:52]} 8.
Bxc4 {[%emt 0:00:15]} Nd5 {[%emt 0:02:01]} 9. O-O {[%emt 0:00:58]} O-O {
[%emt 0:01:55]} 10. e4 {[%emt 0:03:27]} N5b6 {[%emt 0:02:00]} 11. Bd3 {[%emt 0:
00:00]} f6 {[%emt 0:01:54]} 12. Qb3 {[%emt 0:02:32]} Qe7 {[%emt 0:01:18]} 13.
a3 {[%emt 0:01:33]} Bd6 {[%emt 0:02:47]} 14. a4 {[%emt 0:01:26]} a5 {[%emt 0:
00:00]} 15. Re1 {[%emt 0:00:00]} Bc7 {[%emt 0:03:17]} 16. Be3 {[%emt 0:00:41]}
Kh8 {[%emt 0:01:55]} 17. Rac1 {[%emt 0:02:38]} Qb4 {[%emt 0:09:43]} 18. Qa2 {
[%emt 0:01:24]} Qe7 {[%emt 0:05:10]} 19. Bb1 {[%emt 0:02:30]} Qf7 {[%emt 0:00:
00]} 20. Red1 {[%emt 0:01:42]} Qh5 {[%emt 0:02:17]} 21. h3 {[%emt 0:01:12]} Bb8
{[%emt 0:06:17]} 22. Qb3 {[%emt 0:01:12]} Ba7 {[%emt 0:01:20]} 23. Ne2 {
[%emt 0:01:57]} Re8 {[%emt 0:09:39]} 24. Nf4 {[%emt 0:02:11]} Qf7 {[%emt 0:00:
00]} 25. Ba2 {[%emt 0:01:09]} Nf8 {[%emt 0:03:57]} 26. d5 {[%emt 0:00:47]} e5 {
[%emt 0:02:21]} 27. Bxb6 {[%emt 0:01:03]} Bxb6 {[%emt 0:01:43]} 28. Qxb6 {
[%emt 0:10:03]} exf4 {[%emt 0:00:33]} 29. Nd2 {[%emt 0:03:40]} Qg6 {[%emt 0:00:
00]} 30. Rc3 {[%emt 0:00:23]} cxd5 {[%emt 0:01:29]} 31. Bxd5 {[%emt 0:01:14]}
Nd7 {[%emt 0:00:02]} 32. Qc7 {[%emt 0:03:51]} Ne5 {[%emt 0:00:36]} 33. Kh2 {
[%emt 0:00:49]} Qh5 {[%emt 0:01:00]} 34. f3 {[%emt 0:08:19]} Qh4 {[%emt 0:00:
00]} 35. Nf1 {[%emt 0:01:03]} g5 {[%emt 0:02:28]} 36. Qb6 {[%emt 0:00:36]} g4 {
[%emt 0:00:51]} 37. fxg4 {[%emt 0:01:12]} Bxg4 {[%emt 0:00:53]} 38. Rd2 {
[%emt 0:00:48]} f3 {[%emt 0:02:27]} 39. Qf2 {[%emt 0:00:27]} Qh6 {[%emt 0:00:
00]} 40. Qg3 {[%emt 0:02:18]} fxg2 {[%emt 0:03:34]} 41. Rxg2 {[%emt 0:30:18]}
Be6 {[%emt 0:30:15]} 42. Bxe6 {[%emt 0:01:31]} Rxe6 {[%emt 0:00:02]} 43. Rc7 {
[%emt 0:00:20]} Ng6 {[%emt 0:01:43]} 44. Rxb7 {[%emt 0:01:24]} Rxe4 {[%emt 0:
00:00]} 45. Rb8+ {[%emt 0:00:21]} Re8 {[%emt 0:00:03]} 46. Rxa8 {[%emt 0:01:25]
} Rxa8 {[%emt 0:00:02]} 47. Rf2 {[%emt 0:00:28]} Rf8 {[%emt 0:00:42]} 48. Ne3 {
[%emt 0:00:49]} Qh4 {[%emt 0:00:51]} 49. Qxh4 {[%emt 0:00:56]} Nxh4 {[%emt 0:
00:00]} 50. Nc4 {[%emt 0:03:01]} Kg7 {[%emt 0:01:39]} 51. Nxa5 {[%emt 0:00:04]}
Ra8 {[%emt 0:00:38]} 52. b4 {[%emt 0:00:07]} Ng6 {[%emt 0:00:11]} 53. Ra2 {
[%emt 0:00:18]} Ne5 {[%emt 0:00:19]} 54. Kg3 {[%emt 0:00:35]} h5 {[%emt 0:00:
00]} 55. Ra3 {[%emt 0:00:59]} Kg6 {[%emt 0:00:44]} 56. Kf4 {[%emt 0:00:13]} Rd8
{[%emt 0:00:53]} 57. Ke4 {[%emt 0:00:55]} Kf7 {[%emt 0:00:52]} 58. b5 {[%emt 0:
00:00]} Ke6 {[%emt 0:00:27]} 59. Rc3 {[%emt 0:00:46]} f5+ {[%emt 0:00:25]} 60.
Ke3 {[%emt 0:00:10]} f4+ {[%emt 0:00:39]} 61. Kxf4 {[%emt 0:02:36]} Rd4+ {
[%emt 0:00:10]} 62. Kg5 {[%emt 0:00:04]} Rxa4 {[%emt 0:00:36]} 63. Nc6 {
[%emt 0:01:09]} Ra8 {[%emt 0:02:14]} 64. Re3 {[%emt 0:00:14]} Rh8 {[%emt 0:00:
00]} 65. Rxe5+ {[%emt 0:00:10]} 1-0

[Event "44th Chess Olympiad Open 2022"]
[Site "Chennai"]
[Date "2022.07.30"]
[Round "2.71"]
[White "Sharikhan, Shawal"]
[Black "Germinal, Kemly"]
[Result "0-1"]
[WhiteElo "1789"]
[BlackElo "1997"]
[Annotator "NA RC"]
[PlyCount "96"]
[EventDate "2022.??.??"]
[TimeControl "60"]

1. Nf3 {[%emt 0:00:07]} Nc6 {[%emt 0:00:16]} 2. c4 {[%emt 0:00:30]} e5 {
[%emt 0:00:36]} 3. Nc3 {[%emt 0:00:27]} Nf6 {[%emt 0:00:18]} 4. e4 {[%emt 0:00:
00]} Bb4 {[%emt 0:05:23]} 5. Qc2 {[%emt 0:05:45]} d6 {[%emt 0:01:24]} 6. a3 {
[%emt 0:03:04]} Bxc3 {[%emt 0:03:42]} 7. bxc3 {[%emt 0:00:19]} Bg4 {[%emt 0:00:
00]} 8. Be2 {[%emt 0:01:16]} O-O {[%emt 0:04:37]} 9. d3 {[%emt 0:01:20]} Ne8 {
[%emt 0:03:01]} 10. h3 {[%emt 0:03:45]} Bd7 {[%emt 0:01:03]} 11. Bg5 {[%emt 0:
00:00]} f6 {[%emt 0:00:40]} 12. Bh4 {[%emt 0:00:45]} Kh8 {[%emt 0:04:04]} 13.
g4 {[%emt 0:04:10]} Ne7 {[%emt 0:02:25]} 14. Bg3 {[%emt 0:05:29]} c6 {[%emt 0:
00:00]} 15. Nh4 {[%emt 0:08:14]} d5 {[%emt 0:00:54]} 16. cxd5 {[%emt 0:03:41]}
cxd5 {[%emt 0:00:22]} 17. O-O {[%emt 0:13:34]} Rc8 {[%emt 0:04:26]} 18. Qd2 {
[%emt 0:03:04]} Qa5 {[%emt 0:04:41]} 19. Qb2 {[%emt 0:04:20]} Nd6 {[%emt 0:00:
00]} 20. Qb4 {[%emt 0:09:10]} Qc7 {[%emt 0:07:23]} 21. Rac1 {[%emt 0:05:32]} a5
{[%emt 0:01:14]} 22. Qb2 {[%emt 0:02:36]} dxe4 {[%emt 0:00:39]} 23. d4 {
[%emt 0:00:50]} Nf7 {[%emt 0:02:43]} 24. Rfd1 {[%emt 0:04:57]} Ng5 {[%emt 0:00:
00]} 25. Kh2 {[%emt 0:03:09]} Ba4 {[%emt 0:01:07]} 26. Re1 {[%emt 0:01:34]} e3
{[%emt 0:01:24]} 27. f3 {[%emt 0:00:22]} Nd5 {[%emt 0:05:14]} 28. Ng2 {[%emt 0:
00:00]} Nf4 {[%emt 0:02:42]} 29. h4 {[%emt 0:01:17]} Nxg2 {[%emt 0:04:58]} 30.
Kxg2 {[%emt 0:00:21]} Ne6 {[%emt 0:00:13]} 31. Bf1 {[%emt 0:01:47]} Nf4+ {
[%emt 0:01:07]} 32. Kh2 {[%emt 0:00:12]} Bc6 {[%emt 0:02:13]} 33. Rxe3 {
[%emt 0:01:15]} Rce8 {[%emt 0:02:55]} 34. Bxf4 {[%emt 0:01:20]} exf4 {[%emt 0:
00:00]} 35. Rxe8 {[%emt 0:00:11]} Rxe8 {[%emt 0:00:07]} 36. Kg2 {[%emt 0:00:47]
} Re3 {[%emt 0:01:15]} 37. Be2 {[%emt 0:01:41]} Qe7 {[%emt 0:01:31]} 38. Kf2 {
[%emt 0:00:32]} f5 {[%emt 0:00:44]} 39. g5 {[%emt 0:00:09]} h6 {[%emt 0:01:42]}
40. Rg1 {[%emt 0:00:30]} h5 {[%emt 0:07:14]} 41. Rd1 {[%emt 0:30:20]} Bd5 {
[%emt 0:44:28]} 42. Rd2 {[%emt 0:00:28]} Qe8 {[%emt 0:01:13]} 43. c4 {[%emt 0:
00:00]} Rxf3+ {[%emt 0:00:14]} 44. Bxf3 {[%emt 0:00:41]} Qe3+ {[%emt 0:00:06]}
45. Kf1 {[%emt 0:00:44]} Qxf3+ {[%emt 0:00:12]} 46. Ke1 {[%emt 0:01:25]} Qh1+ {
[%emt 0:00:25]} 47. Kf2 {[%emt 0:00:59]} Qg2+ {[%emt 0:00:14]} 48. Ke1 {
[%emt 0:00:35]} Qg1+ {[%emt 0:00:06]} 0-1